bitfinex/quotes_SOLUSD_20241001
["timestamp","ask_amount","ask_price","bid_price","bid_amount"]
[1727803050171,15.9595,146.43,146.32,18.45128862]
[1727803050377,26.828,146.46,146.37,6.8317]
[1727803050583,6.8312,146.39,146.3,0.2]
[1727803050793,20.0,146.46,146.2,2.0]
[1727803050794,20.0,146.21,146.2,2.0]
[1727803050972,20.33143511,146.36,146.2,2.0]
[1727803050973,6.2254,146.36,146.2,2.0]
[1727803051175,6.8354,146.3,146.2,2.0]
[1727803051386,20.0,146.32,146.2,2.0]
[1727803051975,20.0,146.32,146.21,17.0985]
[1727803052196,6.8349,146.31,146.21,23.9376]
[1727803052383,6.8363,146.28,146.2,2.3018366]
[1727803052586,6.836,146.29,146.2,9.1415366]
[1727803052784,20.0,146.28,146.2,9.1415366]
[1727803052984,6.8369,146.27,146.2,2.3018366]
[1727803053185,6.8378,146.25,146.2,2.3018366]
[1727803053390,20.0,146.32,146.2,2.3018366]
[1727803053584,6.8387,146.23,146.2,2.3018366]
[1727803053791,6.8378,146.25,146.2,2.3018366]
[1727803054001,20.0,146.29,146.2,2.3018366]
[1727803054175,6.8392,146.22,146.2,2.3018366]
[1727803054680,20.0,146.29,146.2,2.3018366]
[1727803054979,6.8377,146.25,146.2,2.3018366]
[1727803055192,2.0,146.5,146.2,2.3018366]
[1727803055193,6.8346,146.32,146.24,6.8377]
[1727803055374,6.2254,146.36,146.2,2.3018366]
[1727803055578,6.8356,146.3,146.22,6.8387]
[1727803055779,6.2254,146.36,146.25,23.776884]
[1727803055996,2.0,146.4,146.25,23.776884]
[1727803056298,6.90495849,146.37,146.25,23.776884]
[1727803056475,2.0,146.4,146.25,23.776884]
[1727803056687,6.90374168,146.38,146.25,23.776884]
[1727803056903,6.8332,146.35,146.26,6.8368]
[1727803057077,6.90374168,146.38,146.21,52.96937979]
[1727803057078,6.90374168,146.38,146.3,6.8348]
[1727803057276,2.0,146.4,146.29,23.776884]
[1727803057510,6.8317,146.38,146.3,6.8351]
[1727803057806,23.97881109,146.39,146.23,17.0954]
[1727803058008,6.8345,146.32,146.24,23.776884]
[1727803058189,6.90111109,146.39,146.28,23.776884]
[1727803058680,6.90111109,146.39,146.27,17.0908]
[1727803059076,6.90111109,146.39,146.24,23.776884]
[1727803059293,6.90111109,146.39,146.25,1.56288156]
[1727803059498,6.8316,146.38,146.32,6.8341]
[1727803059807,6.8316,146.38,146.3,17.088]
[1727803060123,6.8328,146.36,146.28,6.8361]
[1727803060295,6.8328,146.36,146.25,1.56288156]
[1727803060296,8.9032344,146.4,146.27,23.776884]
[1727803060609,8.9032344,146.4,146.32,6.8338]
[1727803060816,8.9032344,146.4,146.3,23.776884]
[1727803061201,25.9803344,146.4,146.27,1.56266786]
[1727803061413,6.8329,146.35,146.27,1.56266786]
[1727803061618,6.8349,146.31,146.27,1.56266786]
[1727803061801,20.0,146.36,146.25,17.0935]
[1727803062115,20.0,146.36,146.25,23.9308]
[1727803062116,6.8348,146.31,146.25,23.9308]
[1727803062318,6.80442,146.31,146.25,23.9308]
[1727803062696,6.8353,146.3,146.25,6.8376]
[1727803062897,20.0,146.33,146.25,6.8376]
[1727803063103,20.0,146.33,146.21,15.1122]
[1727803063402,6.8349,146.31,146.25,6.8373]
[1727803063609,20.0,146.33,146.24,17.0947]
[1727803063610,26.8341,146.33,146.26,6.8371]
[1727803063798,17.0795,146.38,146.24,17.0947]
[1727803063997,43.776884,146.37,146.24,17.0947]
[1727803064193,6.8359,146.29,146.24,17.0947]
[1727803064429,17.0826,146.35,146.24,17.0947]
[1727803064603,6.8349,146.31,146.24,17.0947]
[1727803064808,6.8357,146.3,146.24,17.0947]
[1727803064999,6.8346,146.32,146.24,17.0947]
[1727803065199,6.8348,146.31,146.26,6.8369]
[1727803065397,6.8342,146.33,146.27,6.8362]
[1727803065704,8.9032344,146.4,146.28,23.776884]
[1727803065705,1.18056208,146.32,146.28,23.776884]
[1727803065906,6.8325,146.36,146.3,6.8351]
[1727803066323,1.18029986,146.37,146.28,30.612684]
[1727803066324,6.8334,146.34,146.28,30.612684]
[1727803066530,6.833,146.35,146.3,23.776884]
[1727803066826,1.18029986,146.37,146.3,23.776884]
[1727803067130,1.18029986,146.37,146.3,0.0823723]
[1727803067131,18.26119986,146.37,146.3,0.0823723]
[1727803067310,20.0,146.36,146.3,0.0823723]
[1727803067514,6.8337,146.34,146.3,0.0823723]
[1727803067715,20.0,146.36,146.3,0.0823723]
[1727803067918,26.8348,146.31,146.3,0.0823723]
[1727803068118,1.18029986,146.37,146.3,0.0823723]
[1727803068423,6.8348,146.31,146.3,0.0823723]
[1727803068731,26.8348,146.31,146.3,0.0823723]
[1727803070614,33.72939216,146.31,146.3,0.0823723]
[1727803070803,26.8348,146.31,146.3,0.0823723]
[1727803071005,26.8348,146.31,146.3,7.23e-05]
[1727803071207,26.8366,146.27,146.26,6.43e-05]
[1727803073427,17.0887,146.3,146.2,2.0]
[1727803073428,6.8394,146.21,146.2,2.0]
[1727803073636,26.8394,146.21,146.2,2.0]
[1727803074132,6.8427,146.14,146.13,0.846113]
[1727803074332,26.8427,146.14,146.13,0.846113]
[1727803074507,26.8427,146.14,146.08,8.35399449]
[1727803074508,20.0,146.1,146.08,8.35399449]
[1727803074713,26.845,146.09,146.08,8.35399449]
[1727803075321,6.8488,146.01,146.0,4.38384191]
[1727803075543,26.8488,146.01,146.0,4.38384191]
[1727803075709,6.8488,146.01,146.0,0.4394928]
[1727803076239,6.8514,145.96,145.87,23.9926]
[1727803076537,50.0,146.04,145.85,0.08578225]
[1727803076538,17.1257,145.98,145.85,0.08578225]
[1727803076744,20.0,145.86,145.85,0.08578225]
[1727803077119,50.0,145.98,145.85,0.08578225]
[1727803077120,22.0,145.98,145.85,0.08578225]
[1727803077310,17.1298,145.95,145.85,0.08578225]
[1727803077514,20.0,145.96,145.85,0.08578225]
[1727803077837,20.0,145.84,145.83,0.846113]
[1727803078318,6.8577,145.82,145.81,0.3279621]
[1727803078909,23.776884,145.88,145.81,0.3279621]
[1727803079105,23.776884,145.88,145.7,8.61570248]
[1727803079106,20.0,145.82,145.7,8.61570248]
[1727803079430,17.7743,145.82,145.7,8.61570248]
[1727803079730,20.0,145.81,145.7,8.61570248]
[1727803080035,6.8607,145.76,145.7,8.61570248]
[1727803080223,70.0,145.81,145.7,8.61570248]
[1727803080427,6.8622,145.73,145.7,8.61570248]
[1727803080738,6.8627,145.72,145.7,8.61570248]
[1727803080919,6.8608,145.76,145.7,8.61570248]
[1727803081235,20.0,145.79,145.7,8.61570248]
[1727803081236,23.776884,145.77,145.7,8.61570248]
[1727803081549,50.640684,145.69,145.68,1.0655773]
[1727803081853,50.640684,145.69,145.57,6.8694]
[1727803081854,6.8661,145.65,145.57,6.8694]
[1727803082140,6.8682,145.6,145.54,17.1766]
[1727803082440,6.8664,145.64,145.56,6.8696]
[1727803082636,6.8688,145.59,145.53,0.846113]
[1727803083027,10.43526694,145.61,145.53,0.846113]
[1727803083333,10.43526694,145.61,145.51,0.3279621]
[1727803083334,6.8698,145.57,145.51,1.0965857]
[1727803083541,20.0,145.64,145.51,1.0965857]
[1727803083733,67.3184,145.74,145.51,54.06596549]
[1727803084032,6.8631,145.71,145.63,6.8664]
[1727803084423,6.8617,145.74,145.66,6.8649]
[1727803084614,6.8617,145.74,145.6,52.96937979]
[1727803084615,6.93509461,145.74,145.63,52.96937979]
[1727803084815,6.8594,145.79,145.72,6.8621]
[1727803085032,23.2799,145.87,145.73,23.776884]
[1727803085233,6.93293026,145.8,145.7,17.1584]
[1727803085457,6.859,145.8,145.72,6.8622]
[1727803085645,17.1393,145.87,145.71,23.776884]
[1727803085937,17.1393,145.87,145.66,23.776884]
[1727803086141,17.1434,145.83,145.69,17.1592]
[1727803086311,6.8616,145.74,145.67,6.8646]
[1727803086515,6.8609,145.76,145.68,6.8641]
[1727803086724,6.8599,145.78,145.69,6.8635]
[1727803086945,6.8583,145.81,145.71,23.776884]
[1727803087126,6.8599,145.78,145.7,24.0207]
[1727803087439,17.1423,145.84,145.7,24.0207]
[1727803087440,6.8594,145.79,145.7,17.1574]
[1727803087827,6.8597,145.78,145.7,17.1574]
[1727803088045,6.8626,145.72,145.66,17.1631]
[1727803088217,20.0,145.79,145.66,24.0282]
[1727803088218,6.8619,145.74,145.66,24.0282]
[1727803088541,20.0,145.79,145.57,34.3466]
[1727803088843,17.1514,145.76,145.57,34.3466]
[1727803089013,20.0,145.75,145.63,17.1658]
[1727803089220,6.863,145.71,145.64,6.8661]
[1727803089426,6.8636,145.7,145.63,24.0324]
[1727803089752,6.8644,145.68,145.61,6.8673]
[1727803090052,20.0,145.75,145.59,23.4014]
[1727803090053,6.8649,145.67,145.59,17.1711]
[1727803090254,6.8649,145.67,145.61,6.8675]
[1727803090425,20.0,145.75,145.59,17.1711]
[1727803090828,17.156,145.73,145.59,17.1711]
[1727803091055,6.8613,145.75,145.69,6.8637]
[1727803091256,0.65269753,145.85,145.62,52.96937979]
[1727803091423,0.65269753,145.85,145.63,1.56953531]
[1727803091628,6.8599,145.78,145.71,6.8625]
[1727803091850,17.144,145.83,145.69,24.0233]
[1727803092030,1.18418984,145.86,145.72,17.1551]
[1727803092348,6.8593,145.79,145.73,23.776884]
[1727803092536,1.18418984,145.86,145.73,23.776884]
[1727803092537,6.8585,145.81,145.73,23.776884]
[1727803092732,1.18418984,145.86,145.79,23.776884]
[1727803092925,8.04008984,145.86,145.79,23.776884]
[1727803093254,1.18418984,145.86,145.79,23.776884]
[1727803093752,1.18418984,145.86,145.67,6.33]
[1727803093929,1.18418984,145.86,145.67,6.8646]
[1727803094133,17.1494,145.78,145.65,6.8656]
[1727803094441,6.863,145.71,145.64,6.8661]
[1727803094645,6.8625,145.72,145.62,17.1673]
[1727803094851,17.95493831,145.85,145.62,17.1673]
[1727803094852,20.0,145.74,145.62,17.1673]
[1727803095033,20.0,145.74,145.65,17.1639]
[1727803095228,6.8624,145.73,145.65,6.8656]
[1727803095447,17.1523,145.76,145.65,6.8656]
[1727803095646,17.1523,145.76,145.64,17.1649]
[1727803095647,6.8631,145.71,145.64,17.1649]
[1727803095838,50.0,145.81,145.6,42.8162]
[1727803095839,17.146,145.81,145.6,42.8162]
[1727803096168,52.23823831,145.85,145.66,17.1626]
[1727803096169,17.1448,145.82,145.66,17.1626]
[1727803096462,6.8635,145.7,145.62,17.1671]
[1727803096662,17.1519,145.76,145.62,17.1671]
[1727803096832,17.1519,145.76,145.62,24.0339]
[1727803097031,50.0,145.74,145.59,7.01949933]
[1727803097236,15.5449,145.76,145.62,6.867]
[1727803097436,6.8649,145.67,145.61,24.0361]
[1727803097747,20.0,145.73,145.61,24.0361]
[1727803097938,20.0,145.73,145.61,17.1688]
[1727803098133,20.0,145.73,145.57,17.1729]
[1727803098361,20.0,145.75,145.55,500.0]
[1727803098556,70.0,145.75,145.55,500.0]
[1727803098866,20.0,145.68,145.58,6.869]
[1727803099070,6.8665,145.64,145.56,17.1742]
[1727803099240,6.8667,145.63,145.56,17.1742]
[1727803099435,20.0,145.72,145.55,500.0]
[1727803099635,20.0,145.72,145.55,524.0454]
[1727803099636,50.0,145.71,145.55,524.0454]
[1727803099937,50.0,145.71,145.55,500.0]
[1727803099938,17.1659,145.64,145.55,500.0]
[1727803100143,6.87,145.56,145.55,500.0]
[1727803100641,26.87,145.56,145.55,500.0]
[1727803101053,17.1694,145.61,145.55,500.0]
[1727803101249,6.87,145.56,145.55,500.0]
[1727803101453,26.87,145.56,145.55,500.0]
[1727803101645,26.87,145.56,145.55,320.35700611]
[1727803103256,26.87,145.56,145.55,299.99580611]
[1727803104050,26.87,145.56,145.55,153.68601222]
[1727803104847,26.87,145.56,145.55,150.12141222]
[1727803105067,26.87,145.56,145.55,145.03721222]
[1727803105576,26.87,145.56,145.55,105.33799486]
[1727803105740,26.87,145.56,145.55,73.86609486]
[1727803105950,26.87,145.56,145.55,55.96619486]
[1727803106239,26.87,145.56,145.55,27.97279486]
[1727803106442,26.87,145.56,145.55,4.39709486]
[1727803106667,28.87,145.56,145.55,9.486e-05]
[1727803106846,76.8719,145.52,145.51,1.0965857]
[1727803107045,76.8719,145.52,145.38,0.2194643]
[1727803107046,37.1818,145.51,145.39,6.878]
[1727803107256,37.1818,145.51,145.38,0.2194643]
[1727803107750,6.8753,145.45,145.39,6.878]
[1727803107948,6.8753,145.45,145.38,0.2194643]
[1727803107949,37.1818,145.51,145.38,0.2194643]
[1727803108165,20.0,145.51,145.38,0.2194643]
[1727803108348,17.1835,145.49,145.38,0.2194643]
[1727803108673,6.8762,145.43,145.38,0.2194643]
[1727803108849,6.8772,145.41,145.38,0.2194643]
[1727803109063,20.0,145.48,145.38,0.2194643]
[1727803109248,6.8761,145.43,145.38,0.2194643]
[1727803109565,20.0,145.48,145.38,0.2194643]
[1727803109737,6.8763,145.43,145.38,0.2194643]
[1727803109943,17.1829,145.5,145.38,0.2194643]
[1727803110141,17.1829,145.5,145.4,6.8774]
[1727803110142,6.8742,145.48,145.4,6.8774]
[1727803110356,34.3592,145.53,145.38,0.2194643]
[1727803110555,6.8742,145.48,145.41,6.877]
[1727803110743,17.1814,145.51,145.38,0.2194643]
[1727803110951,6.8775,145.4,145.38,0.2194643]
[1727803111970,6.878,145.39,145.38,0.2194643]
[1727803112559,26.878,145.39,145.38,0.2194643]
[1727803112949,6.878,145.39,145.38,0.2194643]
[1727803113842,34.3688,145.49,145.38,0.2194643]
[1727803114044,85.01189753,145.53,145.39,6.8779]
[1727803114045,6.875,145.46,145.39,6.8779]
[1727803114275,34.3592,145.53,145.4,24.0706]
[1727803114571,6.8735,145.49,145.41,6.8767]
[1727803114778,17.1777,145.54,145.43,17.1901]
[1727803114957,6.8718,145.53,145.46,6.8747]
[1727803115160,6.8705,145.55,145.48,6.8737]
[1727803115490,6.8705,145.55,145.47,23.776884]
[1727803115491,1.18542998,145.56,145.51,6.8723]
[1727803115647,1.18542998,145.56,145.5,23.776884]
[1727803115975,1.18542998,145.56,145.46,52.96937979]
[1727803115976,1.18542998,145.56,145.53,23.776884]
[1727803116267,6.8709,145.54,145.53,23.776884]
[1727803116444,6.8709,145.54,145.53,15.79903283]
[1727803116643,6.8705,145.55,145.53,15.79903283]
[1727803116863,6.8701,145.56,145.53,15.79903283]
[1727803117067,1.18239866,145.57,145.53,15.79903283]
[1727803117268,50.65269753,145.68,145.53,15.79903283]
[1727803117269,17.1694,145.61,145.53,15.79903283]
[1727803117575,6.8738,145.48,145.42,17.1907]
[1727803117867,6.8756,145.44,145.43,1.57169379]
[1727803118050,6.8753,145.45,145.43,1.57169379]
[1727803118249,6.85446298,145.49,145.43,1.57169379]
[1727803118467,17.1801,145.52,145.43,1.57169379]
[1727803118656,6.85336893,145.48,145.43,1.57169379]
[1727803118863,6.8743,145.47,145.43,1.57169379]
[1727803119288,6.8747,145.46,145.43,1.57169379]
[1727803119459,6.3756,145.44,145.43,1.57169379]
[1727803119661,6.3756,145.44,145.41,6.4133]
[1727803119858,17.1836,145.49,145.41,6.4133]
[1727803120156,20.0,145.48,145.41,6.4133]
[1727803120356,6.8762,145.43,145.41,6.4133]
[1727803120580,6.8766,145.42,145.41,6.4133]
[1727803120882,6.8757,145.44,145.41,6.4133]
[1727803121083,6.84963783,145.5,145.41,6.4133]
[1727803121084,6.8766,145.42,145.41,6.4133]
[1727803121589,6.8775,145.4,145.39,15.6571]
[1727803121762,6.8767,145.42,145.39,15.6571]
[1727803121955,20.0,145.47,145.39,15.6571]
[1727803122178,6.8755,145.45,145.39,15.6571]
[1727803122483,6.8766,145.42,145.39,15.6571]
[1727803122680,37.1835,145.49,145.39,15.6571]
[1727803123005,6.8743,145.47,145.4,6.8774]
[1727803123171,6.8762,145.43,145.39,15.6571]
[1727803123374,6.8775,145.4,145.39,15.6571]
[1727803123769,34.3712,145.48,145.38,0.2194643]
[1727803123770,6.878,145.39,145.38,0.2194643]
[1727803124793,17.1893,145.44,145.38,0.2194643]
[1727803124960,20.0,145.43,145.38,0.2194643]
[1727803125158,6.8761,145.43,145.38,0.2194643]
[1727803125376,34.3712,145.48,145.38,0.2194643]
[1727803125583,6.8773,145.41,145.38,0.2194643]
[1727803125796,6.8776,145.4,145.38,0.2194643]
[1727803125956,34.3712,145.48,145.38,0.2194643]
[1727803125957,6.878,145.39,145.38,0.2194643]
[1727803126968,6.878,145.39,145.38,6.43e-05]
[1727803127391,20.0,145.43,145.38,6.43e-05]
[1727803127691,6.878,145.39,145.38,6.43e-05]
[1727803128083,6.8777,145.4,145.38,6.43e-05]
[1727803128391,26.878,145.39,145.38,6.43e-05]
[1727803129279,12.51069995,145.39,145.38,6.43e-05]
[1727803130393,26.2566649,145.39,145.38,6.43e-05]
[1727803132172,13.74596495,145.39,145.38,6.43e-05]
[1727803132692,33.74596495,145.39,145.38,6.43e-05]
[1727803132897,17.2005,145.35,145.31,8.87741047]
[1727803133487,6.86796495,145.39,145.31,8.87741047]
[1727803133698,6.86796495,145.39,145.32,17.2025]
[1727803133878,6.86796495,145.39,145.31,61.84679026]
[1727803134284,6.86796495,145.39,145.32,23.776884]
[1727803134483,6.86796495,145.39,145.31,8.87741047]
[1727803134683,50.0,145.36,145.31,8.87741047]
[1727803134894,50.0,145.34,145.31,4.88471047]
[1727803135084,10.06788538,145.35,145.31,4.88471047]
[1727803135297,56.86796495,145.39,145.31,4.88471047]
[1727803135501,50.0,145.35,145.31,4.88471047]
[1727803135711,6.8813,145.32,145.31,1.047e-05]
[1727803136012,50.0,145.33,145.29,1.2482176]
[1727803136013,6.8823,145.3,145.29,2.807e-05]
[1727803136183,56.8823,145.3,145.29,2.807e-05]
[1727803136394,56.8823,145.3,145.21,0.3279621]
[1727803136395,6.8861,145.22,145.21,0.3279621]
[1727803136682,50.0,145.17,145.09,6.6441643]
[1727803136899,50.0,145.13,145.09,0.2194643]
[1727803137214,17.5608487,145.12,144.96,46.7283]
[1727803137385,17.5608487,145.12,145.07,2.82381164]
[1727803137707,50.0,145.09,144.96,22.5842]
[1727803138090,67.2306,145.1,145.01,1.57624597]
[1727803138286,6.8953,145.03,145.01,1.57624597]
[1727803138482,17.2343,145.06,145.01,1.57624597]
[1727803138907,55.90496191,145.11,145.01,1.57624597]
[1727803139089,55.90496191,145.11,144.96,22.5842]
[1727803139090,1.18177867,145.11,144.96,22.5842]
[1727803139609,6.8959,145.02,144.96,22.5842]
[1727803139790,52.55213053,145.01,144.96,22.5842]
[1727803139991,52.55213053,145.01,144.93,26.38841846]
[1727803139992,48.74125817,145.0,144.93,26.15390258]
[1727803140194,6.55606655,144.97,144.93,19.25430258]
[1727803140397,13.82234452,145.0,144.92,0.3279621]
[1727803140586,6.67485555,145.01,144.96,53.49937045]
[1727803140790,3.45558613,145.0,144.93,53.49937045]
[1727803141095,3.45558613,145.0,144.92,0.3279621]
[1727803141418,18.77246527,144.99,144.92,0.3279621]
[1727803141703,0.5,144.93,144.92,0.3279621]
[1727803141910,14.81592281,144.99,144.92,0.3279621]
[1727803141911,7.3983,144.97,144.92,0.3279621]
[1727803142080,0.5,144.93,144.92,0.3279621]
[1727803142799,0.5,144.97,144.92,0.3279621]
[1727803143103,0.5,144.99,144.92,0.3279621]
[1727803143308,7.3995,144.94,144.92,0.3279621]
[1727803143806,20.0,144.93,144.92,0.3279621]
[1727803143991,20.0,144.93,144.87,1.1563352]
[1727803143992,0.5,144.89,144.87,1.1563352]
[1727803144192,7.4019,144.89,144.87,1.1563352]
[1727803145011,0.5,144.91,144.87,1.1563352]
[1727803145223,0.5,144.94,144.87,1.1563352]
[1727803145387,0.5,144.94,144.87,8.0587352]
[1727803145718,6.8997,144.94,144.87,1.1563352]
[1727803146007,0.5,145.02,144.94,23.776884]
[1727803146210,0.5,145.06,144.97,23.776884]
[1727803146519,17.2298,145.1,144.99,77.27625445]
[1727803146520,0.5,145.1,144.99,77.27625445]
[1727803146695,0.5,145.1,144.99,6.8969]
[1727803147010,0.20738569,144.99,144.93,6.5977]
[1727803147883,0.20738569,144.99,144.93,13.4975]
[1727803148083,0.20738569,144.99,144.93,6.5977]
[1727803148288,0.20738569,144.99,144.94,23.776884]
[1727803148488,6.87684974,145.04,144.94,23.776884]
[1727803148489,6.87684974,145.04,145.02,6.8955]
[1727803148729,6.87684974,145.04,144.98,23.776884]
[1727803148730,0.5,145.17,145.07,17.2325]
[1727803148887,0.5,145.19,145.11,6.8912]
[1727803149196,0.5,145.19,145.11,6.8911]
[1727803149401,0.5,145.19,145.1,17.2286]
[1727803149402,0.5,145.24,145.14,17.2246]
[1727803149609,0.5,145.27,145.12,54.99937045]
[1727803149917,0.5,145.27,145.07,6.1078]
[1727803149918,0.5,145.27,145.18,17.2199]
[1727803150119,0.5,145.23,145.13,17.2249]
[1727803150326,11.23450796,145.32,145.13,17.2249]
[1727803150327,16.6492,145.22,145.13,17.2249]
[1727803150521,0.5,145.15,145.01,53.49937045]
[1727803150705,0.5,145.17,145.09,6.8921]
[1727803150910,0.5,145.21,145.07,53.49937045]
[1727803151113,0.5,145.23,145.11,1.5]
[1727803151416,0.5,145.25,145.18,6.8877]
[1727803151620,0.5,145.29,145.21,6.8863]
[1727803151808,0.5,145.29,145.22,15.78467068]
[1727803151997,0.5,145.31,145.24,6.8848]
[1727803152198,0.5,145.32,145.23,17.2138]
[1727803152821,0.5,145.34,145.28,24.0901]
[1727803153072,0.5,145.34,145.28,17.2072]
[1727803153197,0.5,145.38,145.28,17.2072]
[1727803153401,7.3786,145.38,145.3,6.8821]
[1727803153597,0.5,145.4,145.32,6.881]
[1727803153801,6.8791,145.37,145.29,6.8826]
[1727803154014,0.5,145.4,145.28,17.2072]
[1727803154342,0.5,145.38,145.2,54.99937045]
[1727803154638,6.8835,145.28,145.16,23.776884]
[1727803154821,0.5,145.27,145.18,17.2193]
[1727803155021,0.5,145.23,145.13,23.4088]
[1727803155245,0.5,145.23,145.14,1.57483415]
[1727803155437,0.5,145.24,145.14,1.57483415]
[1727803155934,7.3844,145.26,145.18,6.8876]
[1727803156134,7.3844,145.26,145.17,17.2211]
[1727803156341,7.3844,145.26,145.17,24.1094]
[1727803156519,7.3836,145.28,145.17,17.2211]
[1727803156719,6.8847,145.25,145.17,24.1094]
[1727803156939,0.5,145.28,145.2,6.8869]
[1727803157138,7.3834,145.28,145.18,6.8876]
[1727803157317,24.276884,145.3,145.23,6.8855]
[1727803157647,0.5,145.25,145.15,53.49937045]
[1727803157835,6.8839,145.27,145.19,6.8874]
[1727803158013,6.8834,145.28,145.2,6.8869]
[1727803158343,6.8812,145.33,145.24,6.885]
[1727803158640,0.5,145.34,145.23,17.2132]
[1727803158814,17.1943,145.4,145.21,53.49937045]
[1727803158815,0.5,145.36,145.26,17.2096]
[1727803159018,17.1943,145.4,145.21,53.49937045]
[1727803159019,0.5,145.39,145.32,6.8812]
[1727803159237,0.5,145.39,145.3,6.4114]
[1727803159750,0.5,145.39,145.3,13.2934]
[1727803159915,6.8784,145.39,145.3,6.4114]
[1727803160117,0.5,145.41,145.34,6.8803]
[1727803160324,0.5,145.41,145.31,17.2039]
[1727803160532,0.5,145.36,145.3,6.4114]
[1727803160732,0.5,145.34,145.23,6.4824]
[1727803161040,0.5,145.36,145.28,6.8831]
[1727803161248,26.28024657,145.45,145.23,6.4824]
[1727803161249,0.5,145.38,145.23,7.9824]
[1727803161548,0.5,145.35,145.25,34.4231]
[1727803161746,0.5,145.38,145.28,17.2074]
[1727803161936,0.5,145.38,145.31,6.8817]
[1727803162140,0.5,145.4,145.31,17.2039]
[1727803162342,0.5,145.37,145.31,17.2039]
[1727803162519,0.5,145.39,145.31,17.2039]
[1727803162842,1.16711381,145.45,145.25,34.4231]
[1727803162843,0.5,145.42,145.36,6.8794]
[1727803163045,0.5,145.42,145.34,17.2005]
[1727803163232,1.16711381,145.45,145.34,17.2005]
[1727803163233,0.5,145.38,145.34,17.2005]
[1727803163429,0.5,145.38,145.23,7.9824]
[1727803163430,0.5,145.32,145.28,6.8831]
[1727803163644,6.8799,145.35,145.22,17.2143]
[1727803163645,0.5,145.28,145.22,17.2143]
[1727803163945,0.5,145.3,145.22,17.2143]
[1727803164122,0.5,145.3,145.24,6.8846]
[1727803164326,20.0,145.38,145.26,6.8841]
[1727803164327,0.5,145.29,145.26,6.8841]
[1727803164527,20.0,145.38,145.18,53.49937045]
[1727803164528,0.5,145.31,145.18,53.49937045]
[1727803164968,0.5,145.33,145.27,17.2081]
[1727803165456,53.16711381,145.45,145.24,53.49937045]
[1727803165457,0.5,145.38,145.24,53.49937045]
[1727803165644,0.5,145.35,145.31,6.8815]
[1727803165960,0.5,145.35,145.3,6.8818]
[1727803166157,0.5,145.37,145.31,6.8814]
[1727803166455,0.5,145.39,145.34,6.8802]
[1727803166656,0.5,145.37,145.33,17.2021]
[1727803166828,0.5,145.35,145.22,34.4304]
[1727803167032,0.5,145.29,145.16,60.04027045]
[1727803167260,7.3823,145.3,145.21,17.2158]
[1727803167437,0.5,145.3,145.21,17.2158]
[1727803167636,0.5,145.32,145.24,17.2119]
[1727803167955,8.43990709,145.43,145.18,34.4396]
[1727803167956,0.5,145.34,145.19,53.49937045]
[1727803168263,0.5,145.39,145.34,6.88]
[1727803169059,0.5,145.41,145.3,53.49937045]
[1727803169263,1.16711381,145.45,145.4,6.8775]
[1727803169264,1.66711381,145.45,145.4,6.8775]
[1727803169464,16.8105,145.47,145.44,6.8756]
[1727803169634,0.5,145.47,145.33,53.49937045]
[1727803170135,0.5,145.45,145.33,53.49937045]
[1727803170334,0.5,145.43,145.32,34.406]
[1727803170539,0.5,145.43,145.29,6.3208]
[1727803170757,0.5,145.45,145.4,6.8775]
[1727803170936,0.5,145.47,145.33,53.49937045]
[1727803171137,0.5,145.43,145.38,6.8783]
[1727803171441,0.5,145.41,145.24,54.99937045]
[1727803171651,6.8794,145.37,145.31,6.8818]
[1727803171855,0.5,145.38,145.32,6.8813]
[1727803172055,0.5,145.35,145.31,17.2043]
[1727803172259,34.3707,145.48,145.31,6.8817]